fUST/lending_fUST_20240218
["ID","MTS","AMOUNT","RATE_DAILY","PERIOD"]
[314342730,1708204243830,-512.83,0.00030141,2]
[314342731,1708204243839,-3441.92,0.00030141,2]
[314342732,1708204243848,-2447.89,0.00030141,2]
[314342733,1708204243858,-300.0,0.00030204,2]
[314342734,1708204243867,-283.22002943,0.00030266,2]
[314342735,1708204243877,-746.75,0.0003041,2]
[314342736,1708204243886,-3796.26,0.0003041,2]
[314342737,1708204243895,-902.0,0.0003041,2]
[314342738,1708204243904,-500.0,0.0003041,2]
[314342739,1708204243913,-500.0,0.0003041,2]
[314342740,1708204243923,-500.0,0.0003041,2]
[314342741,1708204243933,-589.31,0.0003041,2]
[314342742,1708204243942,-2408.37,0.0003041,2]
[314342743,1708204243952,-200.3193593,0.00030411,2]
[314342744,1708204243961,-397.3566213,0.00030411,2]
[314342745,1708204243970,-200.3193593,0.00030411,2]
[314342746,1708204243979,-200.3193593,0.00030411,2]
[314342747,1708204243988,-200.3193593,0.00030411,2]
[314342748,1708204243997,-306.0,0.00030411,2]
[314342749,1708204244006,-704.88,0.00030415,2]
[314342750,1708204244015,-631.52,0.00030415,2]
[314342751,1708204244024,-500.0,0.00030415,2]
[314342752,1708204244033,-500.0,0.00030415,2]
[314342753,1708204244042,-702.78,0.00030415,2]
[314342754,1708204244051,-500.0,0.00030415,2]
[314342755,1708204244060,-500.0,0.00030415,2]
[314342756,1708204244069,-151.0,0.00030415,2]
[314342757,1708204244079,-500.0,0.00030415,2]
[314342758,1708204244088,-2270.51,0.00030415,2]
[314342759,1708204244097,-500.0,0.00030415,2]
[314342760,1708204244106,-2450.54,0.00030415,2]
[314342761,1708204244115,-662.18,0.00030415,2]
[314342762,1708204244125,-500.0,0.00030415,2]
[314342763,1708204244134,-686.0,0.00030415,2]
[314342764,1708204244143,-500.0,0.00030415,2]
[314342765,1708204244152,-500.0,0.00030415,2]
[314342766,1708204244166,-500.0,0.00030415,2]
[314342767,1708204244175,-500.0,0.00030415,2]
[314342768,1708204244185,-3441.92,0.00030415,2]
[314342769,1708204244194,-2447.89,0.00030415,2]
[314342770,1708204244203,-283.22002943,0.00030455,2]
[314342771,1708204244211,-300.0,0.00030509,2]
[314342772,1708204244220,-237.260291,0.00030527,2]
[314342773,1708204244230,-237.260291,0.00030527,2]
[314342774,1708204244240,-283.22002943,0.00030643,2]
[314342775,1708204244250,-746.75,0.00030684,2]
[314342776,1708204244260,-3796.26,0.00030684,2]
[314342777,1708204244269,-902.0,0.00030684,2]
[314342778,1708204244278,-615.658867,0.00030684,2]
[314342779,1708204244287,-500.0,0.00030684,2]
[314342780,1708204244296,-500.0,0.00030684,2]
[314342781,1708204244305,-589.31,0.00030684,2]
[314342782,1708204244314,-2408.37,0.00030684,2]
[314342783,1708204244323,-704.88,0.00030689,2]
[314342784,1708204244332,-631.52,0.00030689,2]
[314342785,1708204244341,-500.0,0.00030689,2]
[314342786,1708204244350,-500.0,0.00030689,2]
[314342787,1708204244359,-702.78,0.00030689,2]
[314342788,1708204244368,-500.0,0.00030689,2]
[314342789,1708204244378,-500.0,0.00030689,2]
[314342790,1708204244387,-500.0,0.00030689,2]
[314342791,1708204244396,-2270.51,0.00030689,2]
[314342792,1708204244406,-500.0,0.00030689,2]
[314342793,1708204244415,-2450.54,0.00030689,2]
[314342794,1708204244424,-662.18,0.00030689,2]
[314342795,1708204244433,-500.0,0.00030689,2]
[314342796,1708204244442,-686.0,0.00030689,2]
[314342797,1708204244451,-500.0,0.00030689,2]
[314342798,1708204244460,-500.0,0.00030689,2]
[314342799,1708204244469,-500.0,0.00030689,2]
[314342800,1708204244478,-500.0,0.00030689,2]
[314342801,1708204244487,-3441.92,0.00030689,2]
[314342802,1708204244497,-2447.89,0.00030689,2]
[314342803,1708204244506,-155.0,0.00030785,2]
[314342804,1708204244515,-391.278602,0.00030815,2]
[314342805,1708204244524,-283.22002943,0.00030832,2]
[314342806,1708204244533,-242.85,0.00030845,4]
[314342807,1708204244543,-746.75,0.00030958,2]
[314342808,1708204244552,-3796.26,0.00030958,2]
[314342809,1708204244562,-902.0,0.00030958,2]
[314342810,1708204244571,-500.0,0.00030958,2]
[314342811,1708204244581,-500.0,0.00030958,2]
[314342812,1708204244591,-589.31,0.00030958,2]
[314342813,1708204244601,-2408.37,0.00030958,2]
[314342814,1708204244610,-184.6217684,0.00030959,2]
[314342815,1708204244619,-704.88,0.00030963,2]
[314342816,1708204244628,-631.52,0.00030963,2]
[314342817,1708204244637,-500.0,0.00030963,2]
[314342818,1708204244646,-500.0,0.00030963,2]
[314342819,1708204244656,-702.78,0.00030963,2]
[314342820,1708204244665,-532.94,0.00030963,2]
[314342821,1708204244674,-500.0,0.00030963,2]
[314342822,1708204244684,-2270.51,0.00030963,2]
[314342823,1708204244693,-500.0,0.00030963,2]
[314342824,1708204244702,-2450.54,0.00030963,2]
[314342825,1708204244711,-662.18,0.00030963,2]
[314342826,1708204244721,-500.0,0.00030963,2]
[314342827,1708204244730,-686.0,0.00030963,2]
[314342828,1708204244739,-500.0,0.00030963,2]
[314342829,1708204244748,-500.0,0.00030963,2]
[314342830,1708204244757,-500.0,0.00030963,2]
[314342831,1708204244766,-500.0,0.00030963,2]
[314342832,1708204244775,-3441.92,0.00030963,2]
[314342833,1708204244785,-2447.89,0.00030963,2]
[314342834,1708204244794,-150.0,0.00030999,2]
[314342835,1708204244804,-151.0,0.00030999,2]
[314342836,1708204244813,-20000.0,0.00031,2]
[314342837,1708204244822,-1949.7822642,0.00031,2]
[314342838,1708204244831,-855.75698811,0.00031,2]
[314342839,1708204244840,-1476.97001606,0.00031,7]
[314342840,1708204244850,-66612.96125179,0.00031,4]
[314342841,1708204244860,-228.01397593,0.00031,7]
[314342842,1708204244869,-6759.52759945,0.00031,7]
[314342843,1708204244880,-321.07756097,0.00031,7]
[314342844,1708204244889,-2635.95513913,0.00031,7]
[314342845,1708204244899,-10000.0,0.00031,7]
[314342846,1708204244908,-14250.32002687,0.00031,7]
[314342847,1708204244917,-237.260291,0.00031,2]
[314342848,1708204244927,-237.260291,0.00031,2]
[314342849,1708204244936,-237.260291,0.00031,2]
[314342850,1708204244945,-237.260291,0.00031,2]
[314342851,1708204244955,-151.0,0.00031,2]
[314342852,1708204244964,-305.02368292,0.00031,7]
[314342853,1708204244973,-283.22002943,0.0003102,2]
[314342854,1708204244982,-153.34627261,0.00031097,7]
[314342855,1708204244992,-777.0,0.000312,2]
[314342856,1708204245002,-283.22002943,0.00031209,2]
[314342857,1708204245011,-746.75,0.00031232,2]
[314342858,1708204245021,-3796.26,0.00031232,2]
[314342859,1708204245030,-902.0,0.00031232,2]
[314342860,1708204245039,-500.0,0.00031232,2]
[314342861,1708204245048,-500.0,0.00031232,2]
[314342862,1708204245057,-589.31,0.00031232,2]
[314342863,1708204245066,-2408.37,0.00031232,2]
[314342864,1708204245075,-200.3193593,0.00031233,2]
[314342865,1708204245085,-704.88,0.00031237,2]
[314342866,1708204245094,-631.52,0.00031237,2]
[314342867,1708204245103,-500.0,0.00031237,2]
[314342868,1708204245111,-500.0,0.00031237,2]
[314342869,1708204245120,-702.78,0.00031237,2]
[314342870,1708204245130,-151.0,0.00031237,2]
[314342871,1708204245139,-500.0,0.00031237,2]
[314342872,1708204245148,-2270.51,0.00031237,2]
[314342873,1708204245158,-500.0,0.00031237,2]
[314342874,1708204245170,-2450.54,0.00031237,2]
[314342875,1708204245179,-662.18,0.00031237,2]
[314342876,1708204245189,-500.0,0.00031237,2]
[314342877,1708204245198,-686.0,0.00031237,2]
[314342878,1708204245207,-500.0,0.00031237,2]
[314342879,1708204245216,-500.0,0.00031237,2]
[314342880,1708204245226,-500.0,0.00031237,2]
[314342881,1708204245235,-500.0,0.00031237,2]
[314342882,1708204245245,-3441.92,0.00031237,2]
[314342883,1708204245255,-2447.89,0.00031237,2]
[314342884,1708204245264,-301.0,0.00031244,7]
[314342885,1708204245273,-302.0,0.00031244,2]
[314342886,1708204245283,-1403.0,0.00031244,2]
[314342887,1708204245293,-153.34627261,0.00031264,7]
[314342888,1708204245302,-158.31610655,0.00031282,7]
[314342889,1708204245312,-153.34627261,0.00031338,7]
[314342890,1708204245320,-237.260291,0.00031349,2]
[314342891,1708204245330,-237.260291,0.00031349,2]
[314342892,1708204245340,-283.22002943,0.00031397,2]
[314342893,1708204245349,-153.34627261,0.00031484,7]
[314342894,1708204245358,-746.75,0.00031506,2]
[314342895,1708204245367,-3796.26,0.00031506,2]
[314342896,1708204245376,-902.0,0.00031506,2]
[314342897,1708204245386,-500.0,0.00031506,2]
[314342898,1708204245395,-500.0,0.00031506,2]
[314342899,1708204245404,-589.31,0.00031506,2]
[314342900,1708204245413,-2408.37,0.00031506,2]
[314342901,1708204245422,-704.88,0.00031511,2]
[314342902,1708204245431,-631.52,0.00031511,2]
[314342903,1708204245440,-644.06,0.00031511,2]
[314342904,1708204245449,-500.0,0.00031511,2]
[314342905,1708204245458,-702.78,0.00031511,2]
[314342906,1708204245467,-500.0,0.00031511,2]
[314342907,1708204245476,-2270.51,0.00031511,2]
[314342908,1708204245484,-500.0,0.00031511,2]
[314342909,1708204245494,-2450.54,0.00031511,2]
[314342910,1708204245504,-662.18,0.00031511,2]
[314342911,1708204245579,-500.0,0.00031511,2]
[314342912,1708204245588,-686.0,0.00031511,2]
[314342913,1708204245597,-437.865938,0.00031511,2]
[314342914,1708204245606,-500.0,0.00031511,2]
[314342915,1708204245615,-500.0,0.00031511,2]
[314342916,1708204245624,-500.0,0.00031511,2]
[314342917,1708204245633,-3441.92,0.00031511,2]
[314342918,1708204245642,-2447.89,0.00031511,2]
[314342919,1708204245651,-153.34627261,0.00031555,7]
[314342920,1708204245660,-183.05705443,0.00031586,5]
[314342921,1708204245669,-283.22002943,0.00031586,2]
[314342922,1708204245678,-153.34627261,0.00031605,7]
[314342923,1708204245687,-294.63300604,0.0003167,4]
[314342924,1708204245697,-182.3,0.00031682,35]
[314342925,1708204245706,-237.260291,0.00031686,2]
[314342926,1708204245715,-237.260291,0.00031686,2]
[314342927,1708204245724,-237.260291,0.00031686,2]
[314342928,1708204245733,-237.260291,0.00031686,2]
[314342929,1708204245743,-237.260291,0.00031686,2]
[314342930,1708204245752,-237.260287,0.00031686,2]
[314342931,1708204245761,-151.0,0.00031686,2]
[314342933,1708204245770,-214.794912,0.00031686,2]
[314342934,1708204245780,-875287.77734221,0.00031686,30]
[314343295,1708205441917,-679.52722844,0.00024011,2]
[314343297,1708205441926,-1251.31079521,0.00024012,5]
[314343299,1708205441935,-2161.40716541,0.00024993,2]
[314343300,1708205441949,-20314.02210277,0.00024993,2]
[314343301,1708205441958,-166.666666,0.00025223,2]
[314343302,1708205441966,-243.925332,0.00025344,2]
[314343303,1708205441975,-1648.1960303,0.00026146,2]
[314343304,1708205441985,-24900.0,0.00026349,2]
[314343305,1708205441994,-512.48610251,0.00027397,2]
[314343306,1708205442003,-500.0,0.00027397,2]
[314343307,1708205442011,-500.0,0.00027397,2]
[314343308,1708205442020,-500.0,0.00027397,2]
[314343309,1708205442029,-500.0,0.00027397,2]
[314343310,1708205442037,-500.0,0.00027397,2]
[314343311,1708205442046,-531.33,0.00027397,2]
[314343312,1708205442055,-500.0,0.00027397,2]
[314343313,1708205442063,-296.14851262,0.00027397,2]
[314343379,1708205443605,-0.03371136,0.00027397,2]
[314343410,1708205446528,-213.58687764,0.00027397,2]
[314343411,1708205446539,-1103.84,0.00027397,2]
[314343412,1708205446548,-500.0,0.00027397,2]
[314343413,1708205446557,-1281.05312236,0.00027397,2]
[314343461,1708206636281,-163.55377005,0.00024793,2]
[314343463,1708206636291,-166.666666,0.00024819,2]
[314343465,1708206636301,-33.97039778,0.00024893,2]
[314343599,1708206637756,-152.26869754,0.00024893,2]
[314343601,1708206637766,-4666.86426488,0.00024993,2]
[314343603,1708206637778,-1120.55877168,0.00024993,2]
[314343604,1708206637787,-152.54853452,0.00024993,2]
[314343606,1708206637799,-1711.45496282,0.00025,2]
[314343607,1708206637809,-169.725629,0.00025175,2]
[314343609,1708206637818,-182.95614973,0.00025197,2]
[314343610,1708206637827,-3097.39043052,0.00025278,2]
[314343612,1708206637840,-9680.31838164,0.00025278,2]
[314343614,1708206637851,-5553.85323884,0.00025278,2]
[314343615,1708206637860,-1562.99665796,0.00025297,2]
[314343616,1708206637871,-160.88802508,0.00027297,2]
[314343618,1708206637880,-329.93,0.00027387,3]
[314343620,1708206637889,-4064.25,0.00027387,3]
[314343622,1708206637898,-6345.65,0.00027387,3]
[314343624,1708206637908,-164.96,0.00027387,3]
[314343627,1708206637929,-5288.04,0.00027387,3]
[314343629,1708206637938,-494.93,0.00027387,3]
[314343630,1708206637948,-363.54460331,0.00027396,2]
[314343632,1708206637957,-600.35127859,0.00027396,2]
[314343633,1708206637966,-500.0,0.00027396,2]
[314343635,1708206637976,-494.97598014,0.00027396,2]
[314343636,1708206637985,-500.0,0.00027397,2]
[314343637,1708206637995,-1000.0,0.00027397,2]
[314343638,1708206638004,-502.88903493,0.00027397,2]
[314343640,1708206638014,-731.21,0.00027397,2]
[314343641,1708206638023,-509.33952143,0.00027397,2]
[314343643,1708206638036,-503.608474,0.00027397,2]
[314343644,1708206638046,-500.0,0.00027397,2]
[314343645,1708206638056,-500.0,0.00027397,2]
[314343646,1708206638065,-500.0,0.00027397,2]
[314343647,1708206638075,-500.0,0.00027397,2]
[314343648,1708206638084,-500.0,0.00027397,2]
[314343649,1708206638093,-503.86860364,0.00027397,2]
[314343650,1708206638102,-500.0,0.00027397,2]
[314343651,1708206638112,-500.0,0.00027397,2]
[314343652,1708206638121,-505.48477638,0.00027397,2]
[314343653,1708206638130,-500.0,0.00027397,2]
[314343654,1708206638140,-500.0,0.00027397,2]
[314343655,1708206638150,-649.98,0.00027397,2]
[314343656,1708206638159,-500.0,0.00027397,2]
[314343657,1708206638168,-500.0,0.00027397,2]
[314343658,1708206638177,-159.3469226,0.00027397,2]
[314343659,1708206638186,-233.06320751,0.00027397,2]
[314343660,1708206638195,-500.0,0.00027397,2]
[314343661,1708206638205,-500.0,0.00027397,2]
[314343662,1708206638214,-500.0,0.00027397,2]
[314343663,1708206638226,-155.0,0.00027397,2]
[314343664,1708206638235,-500.0,0.00027397,2]
[314343665,1708206638244,-632.14,0.00027397,2]
[314343666,1708206638254,-500.0,0.00027397,2]
[314343667,1708206638272,-500.0,0.00027397,2]
[314343668,1708206638287,-609.27,0.00027397,2]
[314343669,1708206638300,-500.0,0.00027397,2]
[314343670,1708206638313,-500.0,0.00027397,2]
[314343671,1708206638327,-500.0,0.00027397,2]
[314343672,1708206638340,-505.20829705,0.00027397,2]
[314343673,1708206638350,-500.0,0.00027397,2]
[314343674,1708206638361,-504.67487428,0.00027397,2]
[314343675,1708206638373,-562.38075067,0.00027397,2]
[314343676,1708206638384,-500.0,0.00027397,2]
[314343677,1708206638397,-500.0,0.00027397,2]
[314343678,1708206638409,-515.02886882,0.00027397,2]
[314343679,1708206638422,-500.0,0.00027397,2]
[314343680,1708206638434,-513.39850921,0.00027397,2]
[314343681,1708206638447,-534.99074956,0.00027397,2]
[314343682,1708206638459,-507.03918604,0.00027397,2]
[314343683,1708206638473,-500.0,0.00027397,2]
[314343685,1708206638484,-500.0,0.00027397,2]
[314343686,1708206638494,-500.0,0.00027397,2]
[314343688,1708206638505,-500.0,0.00027397,2]
[314343689,1708206638516,-503.1545323,0.00027397,2]
[314343690,1708206638528,-500.0,0.00027397,2]
[314343691,1708206638539,-500.0,0.00027397,2]
[314343692,1708206638550,-500.0,0.00027397,2]
[314343694,1708206638561,-500.0,0.00027397,2]
[314343696,1708206638572,-500.0,0.00027397,2]
[314343697,1708206638583,-500.0,0.00027397,2]
[314343699,1708206638594,-2279.69,0.00027397,2]
[314343701,1708206638605,-500.0,0.00027397,2]
[314343703,1708206638618,-4055.31,0.00027397,2]
[314343704,1708206638629,-507.35627239,0.00027397,2]
[314343705,1708206638639,-500.0,0.00027397,2]
[314343706,1708206638650,-500.0,0.00027397,2]
[314343707,1708206638659,-500.0,0.00027397,2]
[314343708,1708206638673,-500.0,0.00027397,2]
[314343709,1708206638685,-707.55,0.00027397,2]
[314343710,1708206638695,-500.0,0.00027397,2]
[314343711,1708206638707,-500.0,0.00027397,2]
[314343712,1708206638720,-500.0,0.00027397,2]
[314343713,1708206638731,-500.0,0.00027397,2]
[314343714,1708206638742,-500.0,0.00027397,2]
[314343715,1708206638752,-500.0,0.00027397,2]
[314343716,1708206638764,-595.45940406,0.00027397,2]
[314343717,1708206638775,-500.0,0.00027397,2]
[314343718,1708206638787,-495.68914286,0.00027397,2]
[314343719,1708206638800,-500.0,0.00027397,2]
[314343720,1708206638812,-500.0,0.00027397,2]
[314343721,1708206638823,-500.0,0.00027397,2]
[314343722,1708206638836,-500.0,0.00027397,2]
[314343723,1708206638848,-500.0,0.00027397,2]
[314343724,1708206638859,-500.0,0.00027397,2]
[314343725,1708206638872,-503.15360928,0.00027397,2]
[314343726,1708206638885,-500.0,0.00027397,2]
[314343727,1708206638896,-500.0,0.00027397,2]
[314343728,1708206638906,-500.0,0.00027397,2]
[314343729,1708206638916,-500.0,0.00027397,2]
[314343730,1708206638926,-155.0,0.00027397,2]
[314343731,1708206638936,-500.0,0.00027397,2]
[314343732,1708206638947,-2188.75,0.00027397,2]
[314343733,1708206638959,-540.63992941,0.00027397,2]
[314343734,1708206638970,-2194.48,0.00027397,2]
[314343735,1708206638980,-500.0,0.00027397,2]
[314343736,1708206638991,-500.0,0.00027397,2]
[314343737,1708206639002,-500.0,0.00027397,2]
[314343738,1708206639014,-500.0,0.00027397,2]
[314343739,1708206639024,-500.0,0.00027397,2]
[314343740,1708206639034,-500.0,0.00027397,2]
[314343741,1708206639044,-648.65,0.00027397,2]
[314343742,1708206639054,-500.0,0.00027397,2]
[314343743,1708206639064,-3371.54,0.00027397,2]
[314343744,1708206639074,-500.0,0.00027397,2]
[314343745,1708206639085,-673.83,0.00027397,2]
[314343746,1708206639096,-500.0,0.00027397,2]
[314343747,1708206639107,-500.0,0.00027397,2]
[314343748,1708206639118,-915.42,0.00027397,2]
[314343749,1708206639130,-508.99933292,0.00027397,2]
[314343750,1708206639140,-500.0,0.00027397,2]
[314343752,1708206639153,-500.0,0.00027397,2]
[314343753,1708206639164,-500.0,0.00027397,2]
[314343754,1708206639175,-221.45173241,0.00027397,2]
[314343755,1708206639186,-500.0,0.00027397,2]
[314343756,1708206639197,-500.0,0.00027397,2]
[314343757,1708206639208,-506.99496205,0.00027397,2]
[314343758,1708206639219,-500.0,0.00027397,2]
[314343759,1708206639230,-409.31389661,0.00027397,2]
[314343760,1708206639240,-525.27731322,0.00027397,2]
[314343761,1708206639251,-503.66728469,0.00027397,2]
[314343762,1708206639262,-500.0,0.00027397,2]
[314343763,1708206639273,-504.32224582,0.00027397,2]
[314343764,1708206639283,-500.0,0.00027397,2]
[314343765,1708206639294,-505.65007809,0.00027397,2]
[314343766,1708206639304,-500.0,0.00027397,2]
[314343767,1708206639315,-500.0,0.00027397,2]
[314343768,1708206639325,-506.1561853,0.00027397,2]
[314343769,1708206639336,-500.0,0.00027397,2]
[314343770,1708206639346,-514.96,0.00027397,2]
[314343771,1708206639357,-521.77890812,0.00027397,2]
[314343772,1708206639367,-500.0,0.00027397,2]
[314343773,1708206639379,-500.0,0.00027397,2]
[314343774,1708206639389,-3229.71,0.00027397,2]
[314343775,1708206639399,-2194.96,0.00027397,2]
[314343776,1708206639518,-500.0,0.00027397,2]
[314343777,1708206639528,-503.5333913,0.00027397,2]
[314343778,1708206639537,-500.0,0.00027397,2]
[314343779,1708206639546,-500.0,0.00027397,2]
[314343780,1708206639556,-29680.33152701,0.00027507,5]
[314343781,1708206639565,-500.0,0.00027534,2]
[314343782,1708206639574,-496.84283628,0.0002767,2]
[314343783,1708206639584,-500.0,0.00027671,2]
[314343784,1708206639593,-1000.0,0.00027671,2]
[314343785,1708206639603,-731.21,0.00027671,2]
[314343786,1708206639612,-500.0,0.00027671,2]
[314343787,1708206639621,-500.0,0.00027671,2]
[314343788,1708206639630,-501.06074641,0.00027671,2]
[314343789,1708206639639,-469.50533681,0.00027671,2]
[314343790,1708206639650,-500.0,0.00027671,2]
[314343791,1708206639659,-500.0,0.00027671,2]
[314343792,1708206639668,-507.25023719,0.00027671,2]
[314343793,1708206639678,-500.0,0.00027671,2]
[314343794,1708206639688,-500.0,0.00027671,2]
[314343795,1708206639697,-500.0,0.00027671,2]
[314343796,1708206639706,-500.0,0.00027671,2]
[314343797,1708206639716,-506.45631732,0.00027671,2]
[314343798,1708206639726,-500.0,0.00027671,2]
[314343799,1708206639736,-500.0,0.00027671,2]
[314343800,1708206639745,-632.14,0.00027671,2]
[314343801,1708206639754,-500.0,0.00027671,2]
[314343802,1708206639764,-500.0,0.00027671,2]
[314343803,1708206639773,-609.27,0.00027671,2]
[314343804,1708206639784,-505.27612881,0.00027671,2]
[314343805,1708206639793,-466.09670805,0.00027671,2]
[314343806,1708206639803,-500.0,0.00027671,2]
[314343807,1708206639812,-518.6324567,0.00027671,2]
[314343808,1708206639822,-500.0,0.00027671,2]
[314343809,1708206639831,-500.0,0.00027671,2]
[314343810,1708206639841,-500.0,0.00027671,2]
[314343811,1708206639849,-506.26113959,0.00027671,2]
[314343812,1708206639858,-500.0,0.00027671,2]
[314343815,1708206639869,-500.0,0.00027671,2]
[314343817,1708206639879,-500.0,0.00027671,2]
[314343818,1708206639888,-500.0,0.00027671,2]
[314343819,1708206639897,-500.0,0.00027671,2]
[314343820,1708206639906,-500.0,0.00027671,2]
[314343821,1708206639916,-517.44050524,0.00027671,2]
[314343822,1708206639924,-500.0,0.00027671,2]
[314343823,1708206639934,-2279.69,0.00027671,2]
[314343824,1708206639943,-506.76238936,0.00027671,2]
[314343825,1708206639952,-4055.31,0.00027671,2]
[314343827,1708206639961,-500.0,0.00027671,2]
[314343829,1708206639971,-500.0,0.00027671,2]
[314343831,1708206639980,-500.0,0.00027671,2]
[314343833,1708206639989,-707.55,0.00027671,2]
[314343835,1708206639999,-500.0,0.00027671,2]
[314343837,1708206640008,-500.0,0.00027671,2]
[314343839,1708206640017,-500.0,0.00027671,2]
[314343841,1708206640026,-500.0,0.00027671,2]
[314343843,1708206640035,-500.0,0.00027671,2]
[314343845,1708206640044,-500.0,0.00027671,2]
[314343846,1708206640053,-504.0187755,0.00027671,2]
[314343848,1708206640062,-500.0,0.00027671,2]
[314343850,1708206640071,-500.0,0.00027671,2]
[314343852,1708206640080,-500.0,0.00027671,2]
[314343854,1708206640089,-500.0,0.00027671,2]
[314343856,1708206640098,-500.0,0.00027671,2]
[314343858,1708206640107,-2188.75,0.00027671,2]
[314343860,1708206640117,-2194.48,0.00027671,2]
[314343862,1708206640126,-500.0,0.00027671,2]
[314343864,1708206640135,-500.0,0.00027671,2]
[314343866,1708206640144,-472.3,0.00027671,2]
[314343868,1708206640153,-311.36704535,0.00027671,2]
[314343870,1708206640162,-648.65,0.00027671,2]
[314343872,1708206640171,-500.0,0.00027671,2]
[314343874,1708206640181,-3371.54,0.00027671,2]
[314343876,1708206640189,-500.0,0.00027671,2]
[314343878,1708206640199,-673.83,0.00027671,2]
[314343880,1708206640208,-500.0,0.00027671,2]
[314343881,1708206640218,-500.0,0.00027671,2]
[314343882,1708206640227,-915.42,0.00027671,2]
[314343883,1708206640236,-500.0,0.00027671,2]
[314343885,1708206640246,-500.0,0.00027671,2]
[314343886,1708206640255,-500.0,0.00027671,2]
[314343888,1708206640263,-500.0,0.00027671,2]
[314343889,1708206640273,-500.0,0.00027671,2]
[314343890,1708206640283,-500.0,0.00027671,2]
[314343891,1708206640292,-500.0,0.00027671,2]
[314343892,1708206640301,-617.51,0.00027671,2]
[314343893,1708206640310,-500.0,0.00027671,2]
[314343894,1708206640319,-500.0,0.00027671,2]
[314343895,1708206640328,-514.96,0.00027671,2]
[314343896,1708206640338,-500.0,0.00027671,2]
[314343897,1708206640347,-500.0,0.00027671,2]
[314343898,1708206640356,-3229.71,0.00027671,2]
[314343899,1708206640366,-2194.96,0.00027671,2]
[314343900,1708206640376,-500.0,0.00027671,2]
[314343901,1708206640385,-500.0,0.00027671,2]
[314343902,1708206640394,-525.30971961,0.00027671,2]
[314343903,1708206640403,-180.24851023,0.00027945,2]
[314343904,1708206640412,-1000.0,0.00027945,2]
[314343905,1708206640421,-731.21,0.00027945,2]
[314343906,1708206640430,-500.0,0.00027945,2]
[314343907,1708206640440,-500.0,0.00027945,2]
[314343908,1708206640449,-500.0,0.00027945,2]
[314343909,1708206640458,-223.7581717,0.00027945,2]
[314343910,1708206640468,-500.0,0.00027945,2]
[314343911,1708206640477,-500.0,0.00027945,2]
[314343912,1708206640486,-500.0,0.00027945,2]
[314343913,1708206640496,-153.44114852,0.00027945,2]
[314343914,1708206640506,-500.0,0.00027945,2]
[314343915,1708206640515,-632.14,0.00027945,2]
[314343916,1708206640524,-504.01055325,0.00027945,2]
[314343917,1708206640534,-505.50491521,0.00027945,2]
[314343918,1708206640543,-609.27,0.00027945,2]
[314343919,1708206640553,-500.0,0.00027945,2]
[314343920,1708206640562,-500.0,0.00027945,2]
[314343921,1708206640571,-500.0,0.00027945,2]
[314343922,1708206640580,-500.0,0.00027945,2]
[314343923,1708206640590,-521.01383545,0.00027945,2]
[314343924,1708206640599,-500.0,0.00027945,2]
[314343925,1708206640609,-270.22,0.00027945,2]
[314343926,1708206640619,-500.0,0.00027945,2]